Workbook

Sheet 市本级公共预算收入调整表
A1: 附表1：
A2: 2017年市本级一般公共预算收入调整情况表
D3: 单位：万元
A4: 项 目 | B4: 预算数 | C4: 调整预算数 | D4: 比预算数
D5: 增减+-
A6: 一、市本级一般公共预算收入 | B6: =B7+B23 -> 132992 | C6: =C7+C23 -> 127357 | D6: =C6-B6 -> -5635
A7: （一）税收收入 | B7: =SUM(B8:B22) -> 77780 | C7: =SUM(C8:C22) -> 84475 | D7: =C7-B7 -> 6695
A8: 增值税 | B8: 24756 | C8: 28932 | D8: 4176
A9: 营业税 | D9: 0
A10: 企业所得税 | B10: 10858 | C10: 15374 | D10: 4516
A11: 个人所得税 | B11: 4431 | C11: 5141 | D11: 710
A12: 资源税 | D12: 0
A13: 城市维护建设税 | B13: 4698 | C13: 4421 | D13: -277
A14: 房产税 | B14: 1752 | C14: 2335 | D14: 583
A15: 印花税 | B15: 1215 | C15: 1273 | D15: 58
A16: 城镇土地使用税 | B16: 1516 | C16: 1588 | D16: 72
A17: 土地增值税 | B17: 6139 | C17: 5431 | D17: -708
A18: 车船税 | B18: 3041 | C18: 3185 | D18: 144
A19: 耕地占用税 | B19: 17640 | C19: 14978 | D19: -2662
A20: 契税 | B20: 1734 | C20: 1817 | D20: 83
A21: 烟叶税 | D21: 0
A22: 其他税收收入 | D22: 0
A23: （二）非税收入 | B23: =SUM(B24:B31) -> 55212 | C23: =SUM(C24:C31) -> 42882 | D23: -12330
A24: 专项收入 | B24: 6997 | C24: 4934 | D24: -2063
A25: 行政事业性收费收入 | B25: 26643 | C25: 20493 | D25: -6150
A26: 罚没收入 | B26: 5764 | C26: 4977 | D26: -787
A27: 国有资本经营收入 | B27: 3520 | C27: 4000 | D27: 480
A28: 国有资源（资产）有偿使用收入 | B28: 9168 | C28: 5855 | D28: -3313
A29: 捐赠收入 | C29: 82 | D29: 82
A30: 政府住房基金收入 | B30: 1748 | C30: 1558 | D30: -190
A31: 其他收入 | B31: 1372 | C31: 983 | D31: -389
D32: 0
A33: 二、转移性收入 | B33: =B34+B36+B50+B69+B72+B75+B77 -> 156953 | C33: =C34+C36+C50+C69+C72+C75+C77 -> 191408 | D33: =D34+D36+D50+D69+D72+D75+D77 -> 34455
A34: （一）返还性收入 | B34: =SUM(B35:B35) -> 22548 | C34: =SUM(C35:C35) -> 22548 | D34: =C34-B34 -> 0
A35: 税费返还收入 | B35: 22548 | C35: 22548 | D35: =C35-B35 -> 0
A36: （二）一般性转移支付收入 | B36: =SUM(B37:B49) -> 35002 | C36: =SUM(C37:C49) -> 35002 | D36: =C36-B36 -> 0
A37: 均衡性转移支付收入 | B37: 1543 | C37: 1543
A38: 县级基本财力保障机制奖补资金收入 | B38: 24220 | C38: 24220
A39: 结算补助收入 | B39: -31804 | C39: -31804
A40: 激励性转移支付收入 | B40: 2237 | C40: 2237
A41: 政策性转移支付收入 | B41: 9737 | C41: 9737
A42: 革命老区转移支付收入 | B42: 195 | C42: 195
A43: 成品油税费改革转移支付补助收入 | B43: 3370 | C43: 3370
A44: 基层公检法司转移支付收入 | B44: 4207 | C44: 4207
A45: 城乡义务教育转移支付收入 | B45: 502 | C45: 502
A46: 基本养老金转移支付收入 | B46: 7589 | C46: 7589
A47: 产粮大县奖励资金收入 | B47: 140 | C47: 140
A48: 重点生态功能区转移支付收入
A49: 固定数额补助收入 | B49: 13066 | C49: 13066
A50: （三）专项转移支付收入 | B50: =SUM(B51:B68) -> 43078 | C50: =SUM(C51:C68) -> 55313 | D50: =C50-B50 -> 12235
A51: 一般公共服务 | B51: 3120 | C51: 1627 | D51: -1493
A52: 公共安全 | B52: 853 | C52: 166 | D52: -687
A53: 教育 | B53: 50 | C53: 3462 | D53: 3412
A54: 科学技术 | B54: 2785 | C54: 41 | D54: -2744
A55: 文化体育与传媒 | B55: 1198 | C55: 371 | D55: -827
A56: 社会保障和就业 | B56: 9694 | C56: 7457 | D56: -2237
A57: 医疗卫生与计划生育 | B57: 5260 | C57: 5012 | D57: -248
A58: 节能环保 | B58: 2020 | C58: 1870 | D58: -150
A59: 城乡社区 | B59: 1900 | C59: 380 | D59: -1520
A60: 农林水 | B60: 5497 | C60: 8182 | D60: =C60-B60 -> 2685
A61: 交通运输 | B61: 1198 | C61: 3319 | D61: 2121
A62: 资源勘探信息等 | C62: 291 | D62: 291
A63: 商业服务业等 | B63: 1000 | C63: 347 | D63: -653
A64: 金融 | D64: 0
A65: 国土海洋气象等 | B65: 2036 | C65: 387 | D65: -1649
A66: 住房保障 | B66: 4159 | C66: 22021 | D66: 17862
A67: 粮油物资储备 | B67: 621 | C67: 230 | D67: -391
A68: 其他支出 | B68: 1687 | C68: 150 | D68: -1537
A69: （四）下级上解收入 | B69: =B70+B71 -> 19954 | C69: =C70+C71 -> 19954 | D69: 0
A70: 体制上解收入 | B70: 18944 | C70: 18944 | D70: 0
A71: 专项上解收入 | B71: 1010 | C71: 1010 | D71: 0
A72: （五）上年结转收入 | B72: =SUM(B73:B74) -> 36371 | C72: =SUM(C73:C74) -> 43730 | D72: 7359
A73: 争取中央、省补助或动用历年结转 | B73: 8292 | C73: 8292 | D73: 0
A74: 上年专项结转 | B74: 28079 | C74: 35438 | D74: =C74-B74 -> 7359
A75: （六）调入资金 | C75: 9401 | D75: =C75-B75 -> 9401
A76: 其中：从预算稳定调节基金调入 | C76: 3724 | D76: 3724
A77: （七）债务收入 | B77: =B78 -> 0 | C77: 5460 | D77: 5460
A78: 地方政府债务收入 | B78: 0 | C78: 5460 | D78: 5460
A79: 一般债务收入 | B79: 0 | C79: 5460 | D79: 5460
A80: 地方政府一般债券收入 | C80: 5460 | D80: 5460
A82: 收 入 合 计 | B82: =B6+B33 -> 289945 | C82: =C6+C33 -> 318765 | D82: =D6+D33 -> 28820

Sheet 市本级公共预算支出调整表
A1: 附表1：
A2: 2017年市本级一般公共预算支出预算调整表
E3: 单位：万元
A4: 科目 编码 | B4: 科目名称 | C4: 预算数 | D4: 调整预算数 | E4: 比预算数增减+- | F4: 非税 | G4: 预算内 | H4: 专款 | I4: 债券 | J4: 备注
B5: 一、市本级一般公共预算支出 | C5: =C6+C133+C168+C188+C206+C231+C307+C352+C373+C395+C449+C468+C485+C497+C500+C520+C533+C544+C547+C552+C556+C136 -> 251074 | D5: 276447 | E5: 25372 | F5: 12000 | G5: -4179 | H5: 12391 | I5: 5160
A6: 201 | B6: 一般公共服务支出 | C6: =C7+C14+C22+C33+C38+C43+C51+C53+C57+C65+C71+C77+C81+C89+C92+C95+C99+C103+C108+C112+C117+C121+C124+C128+C131+C75 -> 33279 | D6: 34174 | E6: 896 | F6: 6 | G6: 1861 | H6: -972 | I6: 0
A7: 20101 | B7: 人大事务 | C7: =SUM(C8:C13) -> 1716 | D7: 2005 | E7: 289 | F7: 0 | G7: 264 | H7: 25 | I7: 0
A8: 2010101 | B8: 行政运行（人大事务） | C8: 1335 | D8: =C8+E8 -> 1468 | E8: =SUM(F8:I8) -> 133 | G8: 133 | J8: 主要是年初预留工资调整和养老保险改革资金
A9: 2010102 | B9: 一般行政管理事务（人大事务） | C9: 8 | D9: 33 | E9: 25 | H9: 25 | J9: 预计上级专款增加
A10: 2010104 | B10: 人大会议 | D10: 131 | E10: 131 | G10: 131 | J10: 主要是年初预留的会议费
A11: 2010105 | B11: 人大立法 | C11: 225 | D11: 225 | E11: 0
A12: 2010107 | B12: 人大代表履职能力提升 | C12: 15 | D12: 15 | E12: 0
A13: 2010108 | B13: 代表工作 | C13: 133 | D13: 133 | E13: 0
A14: 20102 | B14: 政协事务 | C14: =SUM(C15:C21) -> 1359 | D14: 1597 | E14: 237 | F14: 0 | G14: 206 | H14: 31 | I14: 0
A15: 2010201 | B15: 行政运行（政协事务） | C15: 948 | D15: 1100 | E15: 151 | G15: 151 | J15: 主要是年初预留工资调整和养老保险改革资金
A16: 2010202 | B16: 一般行政管理事务（政协事务） | D16: 31 | E16: 31 | H16: 31 | J16: 预计上级专款增加
A17: 2010203 | B17: 机关服务（政协事务） | C17: 18 | D17: 18 | E17: 0
A18: 2010204 | B18: 政协会议 | C18: 88 | D18: 143 | E18: 55 | G18: 55 | J18: 主要是年初预留的会议费
A19: 2010205 | B19: 委员视察 | C19: 131 | D19: 131 | E19: 0
A20: 2010206 | B20: 参政议政（政协事务） | C20: 104 | D20: 104 | E20: 0
A21: 2010299 | B21: 其他政协事务支出 | C21: 70 | D21: 70 | E21: 0
A22: 20103 | B22: 政府办公厅（室）及相关机构事务 | C22: =SUM(C23:C32) -> 4339 | D22: 4900 | E22: 561 | F22: 84 | G22: 372 | H22: 105 | I22: 0
A23: 2010301 | B23: 行政运行（政府办公厅（室）及相关机构事务） | C23: 1878 | D23: 1951 | E23: 74 | G23: 74 | J23: 主要是年初预留工资调整和养老保险改革资金
A24: 2010302 | B24: 一般行政管理事务（政府办公厅（室）及相关机构事务） | C24: 345 | D24: 345 | E24: -0 | G24: -0
A25: 2010303 | B25: 机关服务（政府办公厅（室）及相关机构事务） | C25: 699 | D25: 816 | E25: 118 | F25: 5 | G25: 113 | J25: 主要是年初预留工资调整和养老保险改革资金
A26: 2010304 | B26: 专项服务 | C26: 248 | D26: 288 | E26: 40 | F26: 40
A27: 2010305 | B27: 专项业务活动 | C27: 20 | D27: 55 | E27: 35 | G27: 35
A28: 2010306 | B28: 政务公开审批 | C28: 6 | D28: 26 | E28: 20 | G28: 20
A29: 2010307 | B29: 法制建设 | C29: 199 | D29: 203 | E29: 4 | G29: 4
A30: 2010308 | B30: 信访事务 | C30: 539 | D30: 551 | E30: 12 | G30: 12
A31: 2010350 | B31: 事业运行（政府办公厅（室）及相关机构事务） | C31: 343 | D31: 343 | E31: 0
A32: 2010399 | B32: 其他政府办公厅（室）及相关机构事务支出 | C32: 63 | D32: 322 | E32: 259 | F32: 39 | G32: 114 | H32: 105 | J32: 预计上级专款增加
A33: 20104 | B33: 发展与改革事务 | C33: =SUM(C34:C37) -> 2165 | D33: 1618 | E33: -547 | F33: 0 | G33: 39 | H33: -586 | I33: 0
A34: 2010401 | B34: 行政运行（发展与改革事务） | C34: 1597 | D34: 978 | E34: -619 | G34: 31 | H34: -650 | J34: 主要是年初结转调整
A35: 2010408 | B35: 物价管理 | C35: 550 | D35: 557 | E35: 8 | G35: 8
A36: 2010450 | B36: 事业运行（发展与改革事务） | C36: 18 | D36: 18 | E36: 0
A37: 2010499 | B37: 其他发展与改革事务支出 | D37: 64 | E37: 64 | H37: 64
A38: 20105 | B38: 统计信息事务 | C38: =SUM(C39:C40) -> 721 | D38: 722 | E38: 1 | F38: -39 | G38: 40 | H38: 0 | I38: 0
A39: 2010501 | B39: 行政运行（统计信息事务） | C39: 666 | D39: 705 | E39: 40 | G39: 40
A40: 2010505 | B40: 专项统计业务 | C40: 55 | D40: 16 | E40: -39 | F40: -39
A41: 2010506 | B41: 统计管理 | D41: 145 | E41: 145 | G41: 60 | H41: 85 | J41: 预计上级专款增加和预备费安排的住户调查经费
A42: 2010599 | B42: 其他统计信息事务支出 | D42: 4 | E42: 4 | G42: 4
A43: 20106 | B43: 财政事务 | C43: =SUM(C44:C50) -> 2091 | D43: 2225 | E43: 135 | F43: 0 | G43: 135 | H43: 0 | I43: 0
A44: 2010601 | B44: 行政运行（财政事务） | C44: 849 | D44: 912 | E44: 63 | G44: 63 | J44: 主要是年初预留工资调整和养老保险改革资金
A45: 2010602 | B45: 一般行政管理事务（财政事务） | C45: 392 | D45: 392 | E45: 0
A46: 2010603 | B46: 机关服务（财政事务） | C46: 32 | D46: 32 | E46: 0
A47: 2010604 | B47: 预算改革业务 | C47: 80 | D47: 105 | E47: 25 | G47: 25 | J47: 据实增加上年结转项目
A48: 2010605 | B48: 财政国库业务 | C48: 95 | D48: 142 | E48: 47 | G48: 47 | J48: 据实增加上年结转项目
A49: 2010607 | B49: 信息化建设（财政事务） | C49: 465 | D49: 465 | E49: 0
A50: 2010699 | B50: 其他财政事务支出 | C50: 177 | D50: 177 | E50: 0
A51: 20107 | B51: 税收事务 | C51: =SUM(C52) -> 4500 | D51: 4500 | E51: 0 | F51: 0 | G51: 0 | H51: 0 | I51: 0
A52: 2010701 | B52: 行政运行（税收事务） | C52: 4500 | D52: 4500 | E52: 0
A53: 20108 | B53: 审计事务 | C53: =SUM(C54:C56) -> 1414 | D53: 1425 | E53: 12 | F53: 0 | G53: 12 | H53: 0 | I53: 0
A54: 2010801 | B54: 行政运行（审计事务） | C54: 529 | D54: 540 | E54: 12 | G54: 12 | J54: 主要是年初预留工资调整和养老保险改革资金
A55: 2010802 | B55: 一般行政管理事务（审计事务） | C55: 735 | D55: 735 | E55: 0
A56: 2010899 | B56: 其他审计事务支出 | C56: 150 | D56: 150 | E56: 0
A57: 20110 | B57: 人力资源事务 | C57: =SUM(C58:C63) -> 1165 | D57: 1171 | E57: 6 | F57: 0 | G57: 6 | H57: 0 | I57: 0
A58: 2011001 | B58: 行政运行（人力资源事务） | C58: 769 | D58: 774 | E58: 6 | G58: 6 | J58: 主要是年初预留工资调整和养老保险改革资金
A59: 2011002 | B59: 一般行政管理事务（人力资源事务） | C59: 8 | D59: 8 | E59: 0
A60: 2011006 | B60: 军队转业干部安置 | C60: 5 | D60: 5 | E60: 0
A61: 2011008 | B61: 引进人才费用 | C61: 250 | D61: 250 | E61: 0
A62: 2011011 | B62: 公务员招考 | C62: 15 | D62: 15 | E62: 0
A63: 2011050 | B63: 事业运行（人力资源事务） | C63: 118 | D63: 118 | E63: 0
A64: 2011099 | B64: 其他人力资源事务支出 | D64: 37 | E64: 37 | H64: 37
A65: 20111 | B65: 纪检监察事务 | C65: =SUM(C66:C70) -> 4526 | D65: 4581 | E65: 55 | F65: -140 | G65: 195 | H65: 0 | I65: 0
A66: 2011101 | B66: 行政运行（纪检监察事务） | C66: 1698 | D66: 1881 | E66: 183 | G66: 183 | J66: 主要是年初预留工资调整和养老保险改革资金
A67: 2011104 | B67: 大案要案查处 | C67: 543 | D67: 443 | E67: -100 | F67: -100 | J67: 非税减少
A68: 2011105 | B68: 派驻派出机构 | C68: 340 | D68: 340 | E68: 0
A69: 2011150 | B69: 事业运行（纪检监察事务） | C69: 0 | D69: 0 | E69: 0
A70: 2011199 | B70: 其他纪检监察事务支出 | C70: 1945 | D70: 1917 | E70: -28 | F70: -40 | G70: 12
A71: 20113 | B71: 商贸事务 | C71: =SUM(C72:C74) -> 121 | D71: 291 | E71: 169 | F71: 0 | G71: 169 | H71: 0 | I71: 0
A72: 2011301 | B72: 行政运行（商贸事务） | C72: 8 | D72: =C72+E72 -> 8 | E72: =SUM(F72:I72) -> 0
A73: 2011308 | B73: 招商引资 | C73: 114 | D73: 255 | E73: 141 | G73: 141 | J73: 主要是预备费安排的招商经费
A74: 2011399 | B74: 其他商贸事务支出 | D74: 28 | E74: 28 | G74: 28
A75: 20114 | B75: 知识产权事务 | C75: =C76 -> 0 | D75: 20 | E75: 20 | F75: 0 | G75: 0 | H75: 20 | I75: 0
A76: 2011499 | B76: 其他知识产权事务支出 | D76: 20 | E76: 20 | H76: 20
A77: 20115 | B77: 工商行政管理事务 | C77: =SUM(C78:C80) -> 1838 | D77: 1968 | E77: 130 | F77: 61 | G77: 56 | H77: 13 | I77: 0
A78: 2011501 | B78: 行政运行（工商行政管理事务） | C78: 1486 | D78: 1604 | E78: 117 | F78: 61 | G78: 56 | J78: 主要是年初预留工资调整和养老保险改革资金
A79: 2011504 | B79: 工商行政管理专项 | D79: 13 | E79: 13 | H79: 13
A80: 2011599 | B80: 其他工商行政管理事务支出 | C80: 351 | D80: 351 | E80: 0
A81: 20117 | B81: 质量技术监督与检验检疫事务 | C81: =SUM(C82:C88) -> 1588 | D81: 1722 | E81: 134 | F81: 20 | G81: 4 | H81: 110 | I81: 0
A82: 2011701 | B82: 行政运行（质量技术监督与检验检疫事务） | C82: 974 | D82: 997 | E82: 24 | F82: 20 | G82: 4 | J82: 主要是年初预留工资调整和养老保险改革资金
A83: 2011704 | B83: 出入境检验检疫行政执法和业务管理 | C83: 98 | D83: 98 | E83: 0
A84: 2011706 | B84: 质量技术监督行政执法及业务管理 | C84: 400 | D84: 510 | E84: 110 | H84: 110 | J84: 预计上级专款增加
A85: 2011707 | B85: 质量技术监督技术支持 | C85: 40 | D85: 40 | E85: 0
A86: 2011708 | B86: 认证认可监督管理 | C86: 7 | D86: 7 | E86: 0
A87: 2011709 | B87: 标准化管理 | C87: 44 | D87: 44 | E87: 0
A88: 2011750 | B88: 事业运行（质量技术监督与检验检疫事务） | C88: 25 | D88: 25 | E88: 0
A89: 20123 | B89: 民族事务 | C89: =SUM(C90:C91) -> 73 | D89: 124 | E89: 51 | F89: 0 | G89: 18 | H89: 33 | I89: 0
A90: 2012301 | B90: 行政运行（民族事务） | C90: 73 | D90: 91 | E90: 18 | G90: 18 | J90: 主要是年初预留工资调整和养老保险改革资金
A91: 2012399 | B91: 其他民族事务支出 | D91: 33 | E91: 33 | H91: 33 | J91: 预计上级专款增加
A92: 20124 | B92: 宗教事务 | C92: =SUM(C93:C94) -> 15 | D92: 35 | E92: 20 | F92: 0 | G92: 10 | H92: 10 | I92: 0
A93: 2012401 | B93: 行政运行（宗教事务） | C93: 15 | D93: 15 | E93: 0
A94: 2012499 | B94: 其他宗教事务支出 | D94: 20 | E94: 20 | G94: 10 | H94: 10
A95: 20125 | B95: 港澳台侨事务 | C95: =SUM(C96:C98) -> 61 | D95: 86 | E95: 26 | F95: 0 | G95: 4 | H95: 22 | I95: 0
A96: 2012501 | B96: 行政运行（港澳台侨事务） | C96: 40 | D96: 43 | E96: 4 | G96: 4 | J96: 主要是年初预留工资调整和养老保险改革资金
A97: 2012505 | B97: 台湾事务 | C97: 21 | D97: 41 | E97: 20 | H97: 20 | J97: 预计上级专款增加
A98: 2012506 | B98: 华侨事务 | D98: 2 | E98: 2 | H98: 2
A99: 20126 | B99: 档案事务 | C99: =SUM(C100:C102) -> 488 | D99: 511 | E99: 24 | F99: 12 | G99: 12 | H99: 0 | I99: 0
A100: 2012601 | B100: 行政运行（档案事务） | C100: 181 | D100: 204 | E100: 24 | F100: 12 | G100: 12 | J100: 主要是年初预留工资调整和养老保险改革资金
A101: 2012603 | B101: 机关服务（档案事务） | C101: 3 | D101: 3 | E101: 0
A102: 2012699 | B102: 其他档案事务支出 | C102: 304 | D102: 304 | E102: 0
A103: 20128 | B103: 民主党派及工商联事务 | C103: =SUM(C104:C107) -> 212 | D103: 224 | E103: 12 | F103: 0 | G103: 12 | H103: 0 | I103: 0
A104: 2012801 | B104: 行政运行（民主党派及工商联事务） | C104: 140 | D104: 137 | E104: -3 | G104: -3
A105: 2012802 | B105: 一般行政管理事务（民主党派及工商联事务） | C105: 15 | D105: 15 | E105: 0
A106: 2012804 | B106: 参政议政（民主党派及工商联事务） | C106: 9 | D106: 9 | E106: 0
A107: 2012899 | B107: 其他民主党派及工商联事务支出 | C107: 49 | D107: 64 | E107: 15 | G107: 15
A108: 20129 | B108: 群众团体事务 | C108: =SUM(C109:C111) -> 673 | D108: 690 | E108: 16 | F108: 0 | G108: 16 | H108: 0 | I108: 0
A109: 2012901 | B109: 行政运行（群众团体事务） | C109: 448 | D109: 463 | E109: 14 | G109: 14 | J109: 主要是年初预留工资调整和养老保险改革资金
A110: 2012902 | B110: 一般行政管理事务（群众团体事务） | C110: 225 | D110: 225 | E110: 0
A111: 2012999 | B111: 其他群众团体事务支出 | D111: 2 | E111: 2 | G111: 2
A112: 20131 | B112: 党委办公厅（室）及相关机构事务 | C112: =SUM(C113:C116) -> 1888 | D112: 2195 | E112: 306 | F112: 8 | G112: 299 | H112: 0 | I112: 0
A113: 2013101 | B113: 行政运行（党委办公厅（室）及相关机构事务） | C113: 1683 | D113: 1787 | E113: 103 | F113: 8 | G113: 96 | J113: 主要是年初预留工资调整和养老保险改革资金
A114: 2013102 | B114: 一般行政管理事务（党委办公厅（室）及相关机构事务） | C114: 40 | D114: 40 | E114: 0
A115: 2013105 | B115: 专项业务（党委办公厅（室）及相关机构事务） | C115: 165 | D115: 329 | E115: 164 | G115: 164 | J115: 主要是增加上年结转的电子政务内网建设资金
A116: 2013199 | B116: 其他党委办公厅（室）及相关机构事务支出 | D116: 39 | E116: 39 | G116: 39
A117: 20132 | B117: 组织事务 | C117: =SUM(C118:C120) -> 582 | D117: 850 | E117: 268 | F117: 0 | G117: 268 | H117: 0 | I117: 0
A118: 2013201 | B118: 行政运行（组织事务） | C118: 562 | D118: 549 | E118: -14 | G118: -14
A119: 2013202 | B119: 一般行政管理事务（组织事务） | C119: 10 | D119: 10 | E119: 0
A120: 2013299 | B120: 其他组织事务支出 | C120: 10 | D120: 292 | E120: 282 | G120: 282 | J120: 主要是预备费安排的人才超市建设
A121: 20133 | B121: 宣传事务 | C121: =SUM(C122) -> 451 | D121: 460 | E121: 10 | F121: 0 | G121: 10 | H121: 0 | I121: 0
A122: 2013301 | B122: 行政运行（宣传事务） | C122: 451 | D122: 460 | E122: 10 | G122: 10
A123: 2013399 | B123: 其他宣传事务支出 | D123: 45 | E123: 45 | G123: 45
A124: 20134 | B124: 统战事务 | C124: =SUM(C125:C127) -> 178 | D124: 192 | E124: 14 | F124: 0 | G124: 14 | H124: 0 | I124: 0
A125: 2013401 | B125: 行政运行（统战事务） | C125: 78 | D125: 93 | E125: 14 | G125: 14
A126: 2013450 | B126: 事业运行（统战事务） | C126: 100 | D126: 100 | E126: 0
A127: 2013499 | B127: 其他统战事务支出 | C127: 0 | D127: 0 | E127: 0
A128: 20136 | B128: 其他共产党事务支出 | C128: =SUM(C129:C130) -> 1 | D128: 46 | E128: 45 | F128: 0 | G128: 0 | H128: 45 | I128: 0
A129: 2013602 | B129: 一般行政管理事务 | D129: 25 | E129: 25 | H129: 25
A130: 2013699 | B130: 其他共产党事务支出（其他共产党事务支出） | C130: 1 | D130: 21 | E130: 20 | H130: 20
A131: 20199 | B131: 其他一般公共服务支出 | C131: =SUM(C132) -> 1115 | D131: 16 | E131: -1099 | F131: 0 | G131: -299 | H131: -800 | I131: 0
A132: 2019999 | B132: 其他一般公共服务支出 | C132: 1115 | D132: 16 | E132: =SUM(F132:I132) -> -1099 | G132: -299 | H132: -800 | J132: 预计上级专款减少
A133: 203 | B133: 国防支出 | C133: =C134 -> 305 | D133: 320 | E133: 15 | F133: 0 | G133: 15 | H133: 0 | I133: 0
A134: 20399 | B134: 其他国防支出 | C134: 305 | D134: 320 | E134: 15 | F134: 0 | G134: 15 | H134: 0 | I134: 0
A135: 2039901 | B135: 其他国防支出 | C135: 305 | D135: =C135+E135 -> 320 | E135: =SUM(F135:I135) -> 15 | G135: 15 | J135: 主要是上年结转的预备役军官岗位津贴经费
A136: 204 | B136: 公共安全支出 | C136: =C137+C140+C154+C156+C164 -> 27589 | D136: 25741 | E136: -1848 | F136: -883 | G136: 878 | H136: -1843 | I136: 0
A137: 20401 | B137: 武装警察 | C137: =SUM(C138:C139) -> 1302 | D137: 1392 | E137: 90 | F137: 90 | G137: 0 | H137: 0 | I137: 0
A138: 2040103 | B138: 消防 | C138: 1024 | D138: 1114 | E138: 90 | F138: 90 | J138: 非税调整
A139: 2040104 | B139: 警卫 | C139: 278 | D139: 278 | E139: 0
A140: 20402 | B140: 公安 | C140: =SUM(C141:C153) -> 25678 | D140: 23621 | E140: -2057 | F140: -973 | G140: 766 | H140: -1850 | I140: 0
A141: 2040201 | B141: 行政运行（公安） | C141: 15740 | D141: 15996 | E141: 256 | F141: -510 | G141: 766 | J141: 主要是年初预留工资调整和养老保险改革资金
A142: 2040202 | B142: 一般行政管理事务 | D142: 80 | E142: 80 | H142: 80 | J142: 主要是项目调剂
A143: 2040204 | B143: 治安管理 | C143: 70 | D143: 15 | E143: -55 | F143: -55 | J143: 主要是项目调剂
A144: 2040206 | B144: 刑事侦查 | C144: 1385 | D144: 1285 | E144: -100 | F144: -100 | J144: 主要是项目调剂
A145: 2040209 | B145: 行动技术管理 | C145: 1441 | D145: 1441 | E145: 0
A146: 2040211 | B146: 禁毒管理 | D146: 70 | E146: 70 | H146: 70 | J146: 预计上级专款增加
A147: 2040212 | B147: 道路交通管理 | C147: 2990 | D147: 1332 | E147: -1658 | F147: 342 | H147: -2000 | J147: 主要是非税收入减少
A148: 2040213 | B148: 网络侦控管理 | C148: 924 | D148: 824 | E148: -100 | F148: -100 | J148: 主要是非税收入减少
A149: 2040214 | B149: 反恐怖 | C149: 93 | D149: 93 | E149: 0
A150: 2040216 | B150: 网络运行及维护（公安） | C150: 69 | D150: 69 | E150: 0
A151: 2040217 | B151: 拘押收教场所管理 | C151: 845 | D151: 715 | E151: -130 | F151: -130 | J151: 主要是项目调剂
A152: 2040219 | B152: 信息化建设（公安） | C152: 1860 | D152: 1570 | E152: -290 | F152: -290 | J152: 主要是预计上级专款减少和非税支出减少
A153: 2040299 | B153: 其他公安支出 | C153: 261 | D153: 131 | E153: -130 | F153: -130 | J153: 主要是项目调剂
A154: 20403 | B154: 国家安全 | C154: =C155 -> 100 | D154: 120 | E154: 20 | F154: 0 | G154: 20 | H154: 0 | I154: 0
A155: 2040399 | B155: 其他国家安全支出 | C155: 100 | D155: 120 | E155: 20 | G155: 20
A156: 20406 | B156: 司法 | C156: =SUM(C157:C163) -> 454 | D156: 484 | E156: 30 | F156: 0 | G156: 23 | H156: 7 | I156: 0
A157: 2040601 | B157: 行政运行（司法） | C157: 269 | D157: 292 | E157: 23 | G157: 23 | J157: 主要是年初预留工资调整和养老保险改革资金
A158: 2040604 | B158: 基层司法业务 | D158: 4 | E158: 4 | H158: 4
A159: 2040605 | B159: 普法宣传 | C159: 42 | D159: 42 | E159: 0
A160: 2040607 | B160: 法律援助 | C160: 21 | D160: 21 | E160: 0
A161: 2040609 | B161: 仲裁 | C161: 31 | D161: 31 | E161: 0 | G161: 0
A162: 2040610 | B162: 社区矫正 | C162: 25 | D162: 25 | E162: 0
A163: 2040699 | B163: 其他司法支出 | C163: 67 | D163: 70 | E163: 3 | H163: 3
A164: 20409 | B164: 国家保密 | C164: =SUM(C165:C167) -> 55 | D164: 124 | E164: 69 | F164: 0 | G164: 69 | H164: 0 | I164: 0
A165: 2040901 | B165: 行政运行（国家保密） | C165: 41 | D165: 49 | E165: 8 | G165: 8 | J165: 主要是年初预留工资调整和养老保险改革资金
A166: 2040902 | B166: 一般行政管理事务（国家保密） | C166: 14 | D166: 14 | E166: 0
A167: 2040905 | B167: 保密管理 | D167: 61 | E167: 61 | G167: 61
A168: 205 | B168: 教育支出 | C168: =C169+C173+C177+C184+C186+C182 -> 17682 | D168: 30796 | E168: 13114 | F168: 12161 | G168: 206 | H168: 747 | I168: 0
A169: 20501 | B169: 教育管理事务 | C169: =SUM(C170:C172) -> 2164 | D169: 2475 | E169: 311 | F169: 271 | G169: 40 | H169: 0 | I169: 0
A170: 2050101 | B170: 行政运行（教育管理事务） | C170: 1424 | D170: 1470 | E170: 46 | F170: 6 | G170: 40 | J170: 主要是年初预留工资调整和养老保险改革资金
A171: 2050102 | B171: 一般行政管理事务 | D171: 1005 | E171: 1005 | F171: 1005 | J171: 主要是根据省要求调剂教育科目
A172: 2050199 | B172: 其他教育管理事务支出 | C172: 740 | D172: -0 | E172: -740 | F172: -740 | J172: 主要是根据省要求调剂教育科目
A173: 20502 | B173: 普通教育 | C173: =SUM(C174:C176) -> 6259 | D173: 10884 | E173: 4625 | F173: 4580 | G173: 45 | H173: 0 | I173: 0
A174: 2050201 | B174: 学前教育 | C174: 25 | D174: 60 | E174: 35 | F174: 30 | G174: 5
A175: 2050204 | B175: 高中教育 | C175: 5598 | D175: 10188 | E175: 4590 | F175: 4550 | G175: 40 | J175: 主要是非税收入由专户管理调整到金库管理
A176: 2050299 | B176: 其他普通教育支出 | C176: 636 | D176: 636 | E176: 0
A177: 20503 | B177: 职业教育 | C177: =SUM(C178:C181) -> 3896 | D177: 13711 | E177: 9815 | F177: 7310 | G177: 55 | H177: 2450 | I177: 0
A178: 2050302 | B178: 中专教育 | D178: 2000 | E178: 2000 | H178: 2000 | J178: 预计上级专款增加
A179: 2050303 | B179: 技校教育 | C179: 507 | D179: 2090 | E179: 1583 | F179: 1528 | G179: 55 | J179: 主要是非税收入由专户管理调整到金库管理
A180: 2050305 | B180: 高等职业教育 | C180: 3162 | D180: 8944 | E180: 5782 | F180: 5782 | J180: 主要是非税收入由专户管理调整到金库管理
A181: 2050399 | B181: 其他职业教育支出 | C181: 227 | D181: 677 | E181: 450 | H181: 450 | J181: 预计上级专款增加
A182: 20507 | B182: 特殊教育 | C182: =C183 -> 0 | D182: 2 | E182: 2 | F182: 0 | G182: 2 | H182: 0 | I182: 0
A183: 2050701 | B183: 特殊学校教育 | D183: 2 | E183: 2 | G183: 2
A184: 20508 | B184: 进修及培训 | C184: =C185 -> 3661 | D184: 3726 | E184: 65 | F184: 0 | G184: 65 | H184: 0 | I184: 0
A185: 2050802 | B185: 干部教育 | C185: 3661 | D185: 3726 | E185: 65 | G185: 65 | J185: 预计上级专款增加
A186: 20599 | B186: 其他教育支出 | C186: =C187 -> 1703 | D186: -0 | E186: -1703 | F186: 0 | G186: 0 | H186: -1703 | I186: 0
A187: 2059999 | B187: 其他教育支出 | C187: 1703 | D187: -0 | E187: -1703 | H187: -1703 | J187: 主要是根据省要求调剂到其他教育科目
A188: 206 | B188: 科学技术支出 | C188: =C189+C192+C200+C203+C196+C198 -> 4059 | D188: 2052 | E188: -2008 | F188: 0 | G188: 161 | H188: -2169 | I188: 0
A189: 20601 | B189: 科学技术管理事务 | C189: =SUM(C190:C191) -> 891 | D189: 896 | E189: 4 | F189: 0 | G189: 4 | H189: 0 | I189: 0
A190: 2060101 | B190: 行政运行（科学技术管理事务） | C190: 291 | D190: 296 | E190: 4 | G190: 4 | J190: 主要是调整工资和养老保险改革
A191: 2060199 | B191: 其他科学技术管理事务支出 | C191: 600 | D191: 600 | E191: 0
A192: 20604 | B192: 技术研究与开发 | C192: =SUM(C193:C195) -> 2200 | D192: 0 | E192: -2200 | F192: 0 | G192: 0 | H192: -2200 | I192: 0
A193: 2060402 | B193: 应用技术研究与开发 | C193: 500 | D193: 0 | E193: -500 | H193: -500 | J193: 国务院统筹成立科技基金，不再下达专款
A194: 2060404 | B194: 科技成果转化与扩散 | C194: 700 | D194: 0 | E194: -700 | H194: -700 | J194: 国务院统筹成立科技基金，不再下达专款
A195: 2060499 | B195: 其他技术研究与开发支出 | C195: 1000 | D195: 0 | E195: -1000 | H195: -1000 | J195: 国务院统筹成立科技基金，不再下达专款
A196: 20605 | B196: 科技条件与服务 | C196: =C197 -> 0 | D196: 133 | E196: 133 | F196: 0 | G196: 133 | H196: 0 | I196: 0
A197: 2060599 | B197: 其他科技条件与服务 | D197: 133 | E197: 133 | G197: 133 | J197: 增加上年结转的省专汽研究院专项资金
A198: 20606 | B198: 社会科学 | C198: =C199 -> 0 | D198: 5 | E198: 5 | F198: 0 | G198: 0 | H198: 5 | I198: 0
A199: 2060699 | B199: 其他社会科学支出 | D199: =C199+E199 -> 5 | E199: =SUM(F199:I199) -> 5 | H199: 5
A200: 20607 | B200: 科学技术普及 | C200: =SUM(C201:C202) -> 238 | D200: 264 | E200: 26 | F200: 0 | G200: 0 | H200: 26 | I200: 0
... 382 more rows
